bitfinex/quotes_SOLUSD_20240908
["timestamp","ask_amount","ask_price","bid_price","bid_amount"]
[1725809829088,8.23753477,127.47,127.42,15.5753]
[1725809829381,6.2759,127.47,127.42,15.5753]
[1725809831175,6.2755,127.48,127.42,15.5753]
[1725809831687,6.614,127.47,127.38,16.2152]
[1725809831884,46.96205371,127.46,127.39,20.0]
[1725809832226,45.0,127.46,127.39,20.0]
[1725809832616,1.96209058,127.45,127.39,20.0]
[1725809833183,8.23939058,127.45,127.39,20.0]
[1725809833394,51.2774,127.44,127.39,20.0]
[1725809833695,6.2774,127.44,127.39,20.0]
[1725809834501,6.2774,127.44,127.38,16.2152]
[1725809835632,46.96219895,127.46,127.36,14.27367263]
[1725809835633,6.2781,127.43,127.36,14.27367263]
[1725809835816,6.2781,127.43,127.37,20.0]
[1725809836163,8.24033419,127.43,127.37,20.0]
[1725809836605,6.279,127.41,127.37,20.0]
[1725809836800,6.279,127.41,127.35,15.6433]
[1725809837231,1.96254252,127.4,127.33,8.20182425]
[1725809837376,51.2796,127.4,127.33,8.20182425]
[1725809837579,1.96291785,127.39,127.32,21.9871]
[1725809838697,1.96291785,127.39,127.33,20.0]
[1725809838905,6.2801,127.39,127.33,20.0]
[1725809842093,66.9239,127.4,127.33,20.0]
[1725809843198,45.0,127.4,127.34,1.57039044]
[1725809844399,6.279,127.41,127.33,70.0]
[1725809844826,1.96263571,127.4,127.33,20.0]
[1725809845119,6.279,127.41,127.33,20.0]
[1725809845316,6.279,127.41,127.33,70.0]
[1725809846108,45.0,127.4,127.33,70.0]
[1725809846316,6.279,127.41,127.33,70.0]
[1725809846512,21.9224,127.43,127.33,71.57014457]
[1725809846715,6.2784,127.42,127.33,71.57014457]
[1725809847508,6.2784,127.42,127.33,70.0]
[1725809848111,45.0,127.41,127.33,70.0]
[1725809848620,6.2784,127.42,127.33,71.57003426]
[1725809849396,6.2784,127.42,127.33,70.0]
[1725809850122,21.9224,127.43,127.33,71.56997739]
[1725809850293,45.0,127.42,127.33,71.56997739]
[1725809850694,45.0,127.42,127.33,70.0]
[1725809850917,1.96247254,127.41,127.33,70.0]
[1725809851302,6.2794,127.4,127.33,20.0]
[1725809851521,45.0,127.42,127.33,20.0]
[1725809851727,6.279,127.41,127.33,70.0]
[1725809852591,6.279,127.41,127.33,71.57007656]
[1725809852795,6.279,127.41,127.33,70.0]
[1725809853261,51.2785,127.42,127.33,70.0]
[1725809860330,51.2785,127.42,127.33,71.57012926]
[1725809861142,51.2785,127.42,127.33,70.0]
[1725809863717,51.2785,127.42,127.33,71.57012061]
[1725809864691,45.0,127.42,127.35,50.0]
[1725809864842,45.0,127.42,127.36,16.5913]
[1725809865342,6.278,127.43,127.36,16.5913]
[1725809866385,45.0,127.42,127.36,16.5913]
[1725809877540,45.0,127.42,127.37,6.4951]
[1725809877918,6.278,127.43,127.37,6.4951]
[1725809878448,6.2776,127.44,127.37,6.4951]
[1725809878621,45.0,127.43,127.37,6.4951]
[1725809881654,51.2781,127.43,127.37,6.4951]
[1725809882572,6.277,127.45,127.37,6.4951]
[1725809882742,45.0,127.44,127.38,20.0]
[1725809882956,15.6883,127.49,127.39,15.8077]
[1725809883133,6.2754,127.49,127.4,20.0]
[1725809883451,32.44278562,127.5,127.41,8.06449157]
[1725809883629,32.44278562,127.5,127.42,20.0]
[1725809883833,17.26658562,127.5,127.43,15.8077]
[1725809884242,6.275,127.49,127.43,15.8077]
[1725809885238,17.26658562,127.5,127.44,20.0]
[1725809885436,17.26658562,127.5,127.45,6.4951]
[1725809885746,17.26658562,127.5,127.46,20.0]
[1725809887964,6.2735,127.52,127.46,20.0]
[1725809888158,45.0,127.51,127.46,20.0]
[1725809888332,7.1083611,127.53,127.47,15.8077]
[1725809888536,7.1083611,127.53,127.48,20.0]
[1725809889187,0.8353611,127.53,127.48,20.0]
[1725809889849,0.8353611,127.53,127.47,15.8077]
[1725809890143,6.274,127.51,127.47,15.8077]
[1725809890349,6.2746,127.5,127.45,6.4951]
[1725809890533,1.96131078,127.49,127.45,6.4951]
[1725809890732,46.96131078,127.49,127.45,6.4951]
[1725809891134,45.0,127.49,127.45,6.4951]
[1725809891358,45.0,127.49,127.46,20.0]
[1725809893265,6.2746,127.5,127.46,20.0]
[1725809893844,1.96121934,127.49,127.46,20.0]
[1725809894444,8.23589196,127.5,127.46,20.0]
[1725809895853,6.2746,127.5,127.46,20.0]
[1725809896363,51.2751,127.49,127.45,6.4951]
[1725809896534,6.2755,127.48,127.44,16.5055]
[1725809896762,8.23699449,127.48,127.44,16.5055]
[1725809896939,26.90016462,127.48,127.44,16.5055]
[1725809897844,24.93867013,127.48,127.44,16.5055]
[1725809898439,26.90016493,127.48,127.44,16.5055]
[1725809898645,24.93867013,127.48,127.44,16.5055]
[1725809899067,26.90016492,127.48,127.44,16.5055]
[1725809901360,24.93867013,127.48,127.44,16.5055]
[1725809902045,18.66317013,127.48,127.44,16.5055]
[1725809902665,18.66317013,127.48,127.45,20.0]
[1725809903441,18.66317013,127.48,127.45,50.0]
[1725809904162,18.66317013,127.48,127.44,16.5055]
[1725809904246,18.66317013,127.48,127.45,20.0]
[1725809907706,6.274,127.51,127.45,20.0]
[1725809908463,0.8353611,127.53,127.45,20.0]
[1725809908677,71.38631596,127.53,127.42,6.0932]
[1725809908988,6.275,127.49,127.43,20.0]
[1725809910251,46.96142188,127.48,127.43,20.0]
[1725809910469,8.23794508,127.47,127.42,6.0932]
[1725809910664,6.2762,127.47,127.42,6.0932]
[1725809912569,6.2754,127.49,127.42,6.0932]
[1725809912874,1.96146518,127.48,127.42,6.0932]
[1725809913069,51.2754,127.49,127.42,6.0932]
[1725809913284,6.2755,127.48,127.42,6.0932]
[1725809914445,51.275,127.49,127.42,6.0932]
[1725809917175,17.71403129,127.51,127.43,70.0]
[1725809917376,23.98803129,127.51,127.43,70.0]
[1725809918571,25.94909652,127.51,127.43,70.0]
[1725809918771,23.98803129,127.51,127.43,70.0]
[1725809919259,25.94909662,127.51,127.43,70.0]
[1725809920692,23.98803129,127.51,127.43,70.0]
[1725809920993,17.71403129,127.51,127.43,70.0]
[1725809921887,19.67509439,127.51,127.43,70.0]
[1725809922212,25.94909439,127.51,127.43,70.0]
[1725809922576,23.98803129,127.51,127.43,70.0]
[1725809923191,17.71403129,127.51,127.45,50.0]
[1725809923392,17.71403129,127.51,127.46,20.0]
[1725809925172,19.67493457,127.51,127.46,20.0]
[1725809925583,25.94893457,127.51,127.45,20.0]
[1725809925787,23.98803129,127.51,127.45,20.0]
[1725809926805,17.71403129,127.51,127.45,70.0]
[1725809927284,19.67493319,127.51,127.45,70.0]
[1725809927597,25.94893319,127.51,127.45,20.0]
[1725809929388,6.2747,127.5,127.45,20.0]
[1725809929691,8.23581921,127.5,127.45,20.0]
[1725809929899,6.2747,127.5,127.45,20.0]
[1725809930398,23.98803129,127.51,127.45,20.0]
[1725809933511,23.98803129,127.51,127.45,70.0]
[1725809934003,6.274,127.51,127.45,70.0]
[1725809934195,8.23496126,127.51,127.45,70.0]
[1725809935010,1.96096126,127.51,127.45,70.0]
[1725809935309,7.1083611,127.53,127.46,8.10737427]
[1725809935504,7.1083611,127.53,127.47,20.0]
[1725809940716,1.96079549,127.52,127.47,20.0]
[1725809940909,1.96086094,127.51,127.47,20.0]
[1725809941908,6.2743,127.51,127.46,6.5386]
[1725809943216,8.23537288,127.51,127.46,6.5386]
[1725809943400,6.2743,127.51,127.46,6.5386]
[1725809947614,8.2352771,127.51,127.46,6.5386]
[1725809947798,6.2743,127.51,127.46,6.5386]
[1725809948397,8.23519932,127.51,127.46,6.5386]
[1725809949304,6.2743,127.51,127.46,6.5386]
[1725809949722,23.35209678,127.52,127.46,6.5386]
[1725809950228,25.31300883,127.52,127.46,6.5386]
[1725809950602,23.35209678,127.52,127.46,6.5386]
[1725809951254,7.1083611,127.53,127.47,20.0]
[1725809952033,1.9607004,127.52,127.47,20.0]
[1725809952214,8.2343004,127.52,127.47,20.0]
[1725809952412,6.2736,127.52,127.47,20.0]
[1725809952929,7.1084611,127.53,127.47,20.0]
[1725809955530,9.06917643,127.53,127.47,20.0]
[1725809956129,6.2741,127.51,127.47,20.0]
[1725809957112,1.96096049,127.51,127.46,6.5386]
[1725809957332,16.8248579,127.51,127.46,6.5386]
[1725809957536,45.0,127.5,127.46,6.5386]
[1725809958746,23.0991579,127.51,127.46,6.5386]
[1725809958941,16.8248579,127.51,127.46,6.5386]
[1725809960961,23.0988579,127.51,127.46,6.5386]
[1725809968600,6.2769,127.45,127.44,8.20984486]
[1725809968886,51.277,127.45,127.39,7.56797685]
[1725809969032,6.277,127.45,127.39,6.2025]
[1725809969443,45.0,127.44,127.39,6.2025]
[1725809970412,45.0,127.44,127.38,24.37449338]
[1725809970693,1.96219987,127.43,127.38,24.37449338]
[1725809971521,8.24019987,127.43,127.35,22.4693]
[1725809971730,8.24019987,127.43,127.36,20.0]
[1725809972015,8.24019987,127.43,127.35,22.4693]
[1725809972240,45.0,127.42,127.35,22.4693]
[1725809972945,6.2774,127.44,127.36,50.0]
[1725809973327,1.96226136,127.43,127.36,50.0]
[1725809973686,45.0,127.43,127.36,50.0]
[1725809975342,46.96228736,127.43,127.35,22.4693]
[1725809975529,8.24028736,127.43,127.36,20.0]
[1725809975737,6.278,127.43,127.36,20.0]
[1725809976359,6.278,127.43,127.36,70.0]
[1725809976761,8.24027624,127.43,127.36,70.0]
[1725809979548,8.24027624,127.43,127.36,20.0]
[1725809979963,6.278,127.43,127.36,20.0]
[1725809980300,45.0,127.42,127.36,20.0]
[1725809980737,53.24087107,127.42,127.36,20.0]
[1725809980944,6.2789,127.41,127.36,20.0]
[1725809981136,6.2789,127.41,127.35,22.4693]
[1725809984048,16.2697,127.45,127.35,24.03939874]
[1725809984232,45.0,127.44,127.35,24.03939874]
[1725809984754,45.0,127.44,127.35,22.4693]
[1725809985243,6.278,127.43,127.35,22.4693]
[1725809985439,6.278,127.43,127.36,50.0]
[1725809985944,6.2765,127.46,127.38,50.0]
[1725809986356,15.8493,127.48,127.36,16.2624]
[1725809986594,15.8493,127.43,127.36,16.2624]
[1725809986869,6.2789,127.41,127.36,16.2624]
[1725809987149,1.96262474,127.4,127.36,16.2624]
[1725809987335,1.9626239,127.42,127.36,16.2624]
[1725809987654,6.279,127.41,127.36,16.2624]
[1725809987853,1.96267183,127.4,127.34,8.20700819]
[1725809990231,6.279,127.41,127.34,8.20700819]
[1725809990431,45.0,127.42,127.34,8.20700819]
[1725809990862,1.96259601,127.41,127.34,8.20700819]
[1725809991055,46.96259601,127.41,127.34,8.20700819]
[1725809991250,45.0,127.41,127.34,8.20700819]
[1725809991752,22.91329391,127.42,127.34,8.20700819]
[1725809998837,53.24155044,127.41,127.34,8.20700819]
[1725809999167,1.96267633,127.4,127.34,8.20700819]
[1725810000942,8.24207633,127.4,127.34,8.20700819]
[1725810002622,51.279,127.41,127.34,8.20700819]
[1725810002803,6.279,127.41,127.34,8.20700819]
[1725810002956,6.279,127.41,127.35,15.2935]
[1725810003459,22.84188146,127.42,127.35,15.2935]
[1725810003634,16.56338146,127.42,127.35,65.2935]
[1725810003835,16.56338146,127.42,127.37,50.0]
[1725810007160,16.56338146,127.42,127.38,20.0]
[1725810007360,16.56338146,127.42,127.39,15.2935]
[1725810007552,16.56338146,127.42,127.39,65.2935]
[1725810007735,6.2765,127.46,127.39,65.2935]
[1725810008355,8.23887516,127.45,127.39,15.2935]
[1725810008674,6.277,127.45,127.39,15.2935]
[1725810008880,1.96200217,127.44,127.39,15.2935]
[1725810009239,6.277,127.45,127.39,15.2935]
[1725810009439,6.2765,127.46,127.39,15.2935]
[1725810009665,46.96199816,127.45,127.39,15.2935]
[1725810011177,53.23889816,127.45,127.39,15.2935]
[1725810011377,51.2769,127.45,127.39,15.2935]
[1725810012390,1.96200224,127.44,127.39,15.2935]
[1725810014002,51.2769,127.45,127.35,15.938]
[1725810014003,6.2794,127.4,127.35,15.938]
[1725810014275,1.96271645,127.39,127.35,15.938]
[1725810014398,1.96300653,127.38,127.35,15.938]
[1725810014893,1.96300653,127.38,127.32,6.1334]
[1725810016484,6.2804,127.38,127.32,6.1334]
[1725810016660,45.0,127.37,127.32,6.1334]
[1725810017073,6.2799,127.39,127.32,6.1334]
[1725810017280,45.0,127.38,127.32,6.1334]
[1725810017666,6.6424,127.41,127.32,7.70398786]
[1725810017880,6.2795,127.4,127.32,56.1334]
[1725810018066,45.0,127.39,127.32,56.1334]
[1725810018266,1.96292813,127.38,127.32,6.1334]
[1725810018990,1.96312397,127.37,127.32,6.1334]
[1725810019793,6.2809,127.37,127.31,15.938]
[1725810019959,45.0,127.36,127.31,15.938]
[1725810020959,6.2809,127.37,127.31,15.938]
[1725810021163,1.96343317,127.4,127.31,15.938]
[1725810021660,46.96343317,127.4,127.31,15.938]
[1725810022280,6.2804,127.38,127.31,15.938]
[1725810022477,6.2804,127.38,127.29,14.629031]
[1725810022478,6.283,127.33,127.29,14.629031]
[1725810022690,6.6424,127.35,127.29,8.202031]
[1725810022989,6.2833,127.33,127.25,21.7704]
[1725810023190,8.24776441,127.32,127.25,21.7704]
[1725810023366,53.24776441,127.32,127.25,21.7704]
[1725810024492,23.01470787,127.31,127.25,21.7704]
[1725810024849,16.73080787,127.31,127.25,21.7704]
[1725810025246,24.97882667,127.31,127.25,21.7704]
[1725810025434,61.6763178,127.3,127.25,21.7704]
[1725810025701,1.96429603,127.29,127.21,50.5]
[1725810026008,24.86880776,127.29,127.21,0.5]
[1725810026297,68.22992156,127.28,127.21,0.5]
[1725810026496,24.39868665,127.27,127.21,0.5]
[1725810026801,46.96497261,127.26,127.21,0.5]
[1725810027004,1.96497261,127.26,127.21,0.5]
[1725810027299,46.96497261,127.26,127.21,0.5]
[1725810027502,15.55004211,127.25,127.21,0.5]
[1725810027713,32.56279094,127.31,127.21,0.5]
[1725810027998,60.38977846,127.3,127.21,0.5]
[1725810028202,15.59152072,127.29,127.21,0.5]
[1725810028400,45.0,127.28,127.21,0.5]
[1725810028587,60.09006273,127.28,127.21,0.5]
[1725810029181,15.10314763,127.27,127.21,0.5]
[1725810035408,13.49922313,127.33,127.24,50.0]
[1725810035616,13.49922313,127.33,127.25,20.0]
[1725810036315,1.96392429,127.32,127.25,20.0]
[1725810036514,1.96453694,127.32,127.21,0.5]
[1725810036721,15.1025,127.29,127.21,20.5]
[1725810037013,46.96469741,127.28,127.21,20.5]
[1725810038289,45.0,127.28,127.21,20.5]
[1725810041724,15.1025,127.29,127.21,70.5]
[1725810041893,20.07201852,127.31,127.21,72.0719175]
[1725810042217,28.32050574,127.31,127.21,70.5]
[1725810042911,12.89916839,127.3,127.21,70.5]
[1725810043115,57.89916839,127.3,127.21,70.5]
[1725810043416,57.89916839,127.3,127.21,72.07164449]
[1725810043727,57.89916839,127.3,127.21,70.5]
[1725810044314,12.89916839,127.3,127.23,50.0]
[1725810045206,12.89916839,127.3,127.25,21.8119]
[1725810045409,12.89916839,127.3,127.26,20.0]
[1725810045621,12.6433,127.34,127.26,20.0]
[1725810045996,15.6543,127.35,127.27,1.57114833]
[1725810046225,15.6543,127.35,127.26,44.92575528]
[1725810046599,15.6543,127.35,127.27,50.0]
[1725810046798,19.22797524,127.36,127.28,20.0]
[1725810047601,12.94617524,127.36,127.28,44.92575528]
[1725810048526,12.94617524,127.36,127.28,20.0]
[1725810054139,1.96344218,127.35,127.28,20.0]
[1725810054344,12.94617524,127.36,127.28,20.0]
[1725810056694,46.96362682,127.35,127.28,20.0]
[1725810057171,45.0,127.35,127.28,20.0]
[1725810061161,1.96364608,127.34,127.28,20.0]
[1725810061333,1.96364608,127.34,127.26,20.0]
[1725810062541,8.24604608,127.34,127.26,20.0]
[1725810062849,8.24604608,127.34,127.25,71.8119]
[1725810062850,45.0,127.33,127.25,71.8119]
[1725810063841,45.0,127.33,127.26,24.92575528]
[1725810064040,45.0,127.34,127.26,24.92575528]
[1725810064450,45.0,127.35,127.27,20.0]
[1725810065245,12.94617524,127.36,127.28,41.00615528]
[1725810065372,12.94617524,127.36,127.29,28.06488682]
[1725810067159,12.94617524,127.36,127.3,1.57074627]
[1725810067549,12.94617524,127.36,127.29,28.06484664]
[1725810068473,12.94617524,127.36,127.3,1.57074865]
[1725810068655,12.94617524,127.36,127.29,26.4941]
[1725810069246,45.0,127.35,127.29,26.4941]
[1725810069565,1.96360736,127.34,127.29,26.4941]
[1725810070940,45.0,127.35,127.29,26.4941]
[1725810073446,12.94617524,127.36,127.29,26.4941]
[1725810073651,12.94617524,127.36,127.3,1.57067158]
[1725810074949,12.94617524,127.36,127.31,16.3996]
[1725810075154,12.94617524,127.36,127.32,70.0]
[1725810075848,12.94617524,127.36,127.33,8.02508866]
[1725810076041,12.94617524,127.36,127.34,20.0]
[1725810077438,12.94617524,127.36,127.34,70.0]
[1725810077767,15.8437,127.42,127.34,20.0]
[1725810078142,1.9627012,127.41,127.34,20.0]
[1725810078345,1.9627394,127.4,127.34,20.0]
[1725810078544,1.96282468,127.39,127.34,20.0]
[1725810078756,1.96282468,127.41,127.34,20.0]
[1725810079043,46.96282468,127.41,127.34,20.0]
[1725810079244,45.0,127.41,127.34,20.0]
[1725810080350,51.2793,127.41,127.34,20.0]
[1725810082668,1.9629647,127.4,127.34,20.0]
[1725810082851,46.9629647,127.4,127.34,20.0]
[1725810084256,45.0,127.4,127.34,20.0]
[1725810088079,1.96297768,127.39,127.33,6.4548]
[1725810088281,46.96297768,127.39,127.33,6.4548]
[1725810089076,46.96297768,127.39,127.31,16.3996]
[1725810089460,6.2809,127.37,127.31,16.3996]
[1725810089657,45.0,127.36,127.31,16.3996]
[1725810090255,6.2804,127.38,127.31,16.3996]
[1725810090575,45.0,127.37,127.31,16.3996]
[1725810090776,45.0,127.38,127.31,16.3996]
[1725810091363,6.2795,127.4,127.31,16.3996]
[1725810091665,6.2795,127.4,127.32,20.0]
[1725810091859,45.0,127.39,127.32,20.0]
[1725810103449,6.2785,127.42,127.34,66.3726]
[1725810103701,6.2785,127.42,127.35,20.0]
[1725810104773,45.0,127.41,127.35,20.0]
[1725810107204,45.0,127.41,127.35,21.57007511]
[1725810107506,45.0,127.41,127.35,20.0]
[1725810108622,6.2822,127.35,127.31,18.31756891]
[1725810108776,1.96354492,127.34,127.31,16.3726]
[1725810108967,6.2815,127.36,127.31,16.3726]
[1725810109169,45.0,127.35,127.31,16.3726]
[1725810110682,45.0,127.36,127.31,16.3726]
[1725810111375,6.2804,127.38,127.31,16.3726]
[1725810111376,63.47240715,127.37,127.31,16.3726]
[1725810111574,65.43579468,127.37,127.31,16.3726]
[1725810111833,63.47240715,127.37,127.31,16.3726]
[1725810113066,18.47240715,127.37,127.32,20.0]
[1725810116894,1.96317121,127.36,127.32,20.0]
[1725810117078,46.96317121,127.36,127.31,16.3726]
[1725810118775,46.96317121,127.36,127.27,15.7414]
[1725810118776,6.2838,127.32,127.27,15.7414]
[1725810118980,1.9643133,127.31,127.24,21.7423]
[1725810119185,1.9643133,127.31,127.25,8.18321488]
[1725810119399,1.9643133,127.31,127.24,21.7423]
[1725810119980,1.96449801,127.35,127.24,21.7423]
[1725810120276,6.2843,127.3,127.24,21.7423]
[1725810120476,45.0,127.29,127.24,21.7423]
[1725810120883,45.0,127.3,127.24,21.7423]
[1725810121592,6.2832,127.33,127.25,20.0]
[1725810121785,45.0,127.32,127.25,20.0]
[1725810126990,32.05394737,127.31,127.21,0.5]
[1725810127134,6.2861,127.27,127.21,0.5]
[1725810127318,46.96519716,127.26,127.21,0.5]
[1725810127497,53.25149716,127.26,127.21,0.5]
[1725810128185,51.2863,127.26,127.21,0.5]
[1725810128418,45.0,127.26,127.21,0.5]
[1725810128601,45.0,127.27,127.21,0.5]
[1725810129528,45.0,127.28,127.21,0.5]
[1725810129706,51.2853,127.28,127.21,0.5]
[1725810130901,45.0,127.28,127.21,0.5]
[1725810131220,46.96477593,127.28,127.21,0.5]
[1725810131825,63.3169684,127.28,127.21,0.5]
[1725810132005,16.62236007,127.27,127.21,0.5]
[1725810132225,45.0,127.26,127.21,0.5]
[1725810132497,16.55924479,127.28,127.21,0.5]
[1725810132710,16.22511641,127.27,127.21,0.5]
[1725810132960,61.22511641,127.27,127.21,0.5]
[1725810135716,16.22511641,127.27,127.21,0.5]
[1725810137025,16.22511641,127.27,127.22,16.2768]
[1725810137218,16.22511641,127.27,127.23,20.0]
[1725810137519,6.2839,127.31,127.23,20.0]
[1725810137908,24.21760843,127.32,127.23,20.0]
[1725810138234,6.2834,127.32,127.24,6.518]
[1725810139019,10.5465105,127.33,127.25,20.0]
[1725810139020,6.2829,127.33,127.25,20.0]
[1725810140725,21.60129304,127.34,127.25,70.0]
[1725810140902,21.60129304,127.34,127.26,16.2768]
[1725810141894,15.31899304,127.34,127.26,16.2768]
[1725810142124,15.31899304,127.34,127.27,20.0]
[1725810142705,15.31899304,127.34,127.28,7.44029398]
[1725810142911,15.31899304,127.34,127.29,20.0]
[1725810143226,15.31899304,127.34,127.29,21.57073771]
[1725810143516,15.31899304,127.34,127.31,16.2768]
[1725810146911,16.04053449,127.4,127.32,50.0]
[1725810147244,16.04053449,127.4,127.33,20.0]
[1725810148124,16.04053449,127.4,127.33,26.518]
[1725810148315,46.96294085,127.39,127.33,26.518]
[1725810148711,45.0,127.39,127.33,26.518]
[1725810149722,1.9630663,127.38,127.33,26.518]
[1725810150815,45.0,127.39,127.33,26.518]
[1725810151837,16.04053449,127.4,127.33,76.518]
[1725810152160,16.04053449,127.4,127.33,26.518]
[1725810152161,1.96278432,127.39,127.33,26.518]
[1725810152525,18.00349206,127.4,127.33,26.518]
[1725810152725,6.28,127.39,127.33,26.518]
[1725810152924,1.96326667,127.38,127.33,26.518]
[1725810153140,46.96326667,127.38,127.33,26.518]
[1725810153341,1.96326624,127.37,127.33,26.518]
[1725810153524,46.96326624,127.37,127.33,26.518]
[1725810154035,1.96326624,127.37,127.33,26.518]
[1725810154627,45.0,127.38,127.33,26.518]
[1725810156204,10.5465105,127.45,127.38,50.0]
[1725810156430,16.71875281,127.52,127.43,50.0]
[1725810156507,6.2741,127.51,127.44,20.0]
[1725810156655,15.382,127.51,127.41,20.0]
[1725810156940,15.382,127.51,127.4,51.56958139]
[1725810156941,16.30515564,127.5,127.4,51.56958139]
[1725810157133,16.30515564,127.5,127.41,21.56934076]
[1725810157487,6.1997,127.49,127.42,1.56934749]
[1725810157741,6.1997,127.49,127.36,50.0]
[1725810157742,6.2764,127.47,127.36,50.0]
[1725810157946,6.2764,127.47,127.35,6.4678]
[1725810158367,10.20372054,127.48,127.35,6.4678]
[1725810158935,6.277,127.45,127.35,6.4678]
[1725810159078,45.0,127.44,127.35,6.4678]
[1725810159427,45.0,127.44,127.36,50.0]
[1725810160548,45.0,127.44,127.37,20.0]
[1725810161250,16.50229459,127.47,127.37,20.0]
[1725810161961,16.50229459,127.47,127.38,50.0]
[1725810162130,16.50229459,127.47,127.39,20.0]
[1725810163348,45.0,127.46,127.39,20.0]
[1725810163940,16.50229459,127.47,127.39,20.0]
[1725810164248,16.50229459,127.47,127.4,1.56952478]
[1725810164445,16.50229459,127.47,127.4,1.56933168]
[1725810164854,16.50229459,127.47,127.39,20.0]
[1725810165547,45.0,127.46,127.39,20.0]
[1725810168362,6.2779,127.43,127.39,20.0]
[1725810168591,6.2798,127.4,127.35,6.4678]
[1725810168827,15.382,127.43,127.31,50.0]
[1725810168828,45.0,127.39,127.32,6.4678]
[1725810169635,15.382,127.43,127.33,50.0]
[1725810169850,45.0,127.42,127.33,50.0]
[1725810171244,6.279,127.41,127.33,50.0]
[1725810171448,45.0,127.4,127.33,50.0]
[1725810171902,21.66,127.43,127.37,6.2809]
[1725810172343,45.0,127.42,127.37,6.2809]
[1725810172742,45.0,127.42,127.35,6.2814]
[1725810173144,51.2784,127.42,127.33,50.0]
[1725810173349,51.2784,127.42,127.34,20.0]
[1725810176137,45.0,127.42,127.34,20.0]
[1725810176350,45.0,127.42,127.33,20.0]
[1725810176351,51.3559,127.42,127.33,20.0]
[1725810177170,51.3559,127.42,127.32,6.4678]
[1725810177343,6.2798,127.4,127.32,6.4678]
[1725810177555,45.0,127.39,127.32,6.4678]
[1725810179360,45.0,127.39,127.34,6.2823]
[1725810179574,45.0,127.39,127.33,6.2828]
[1725810180166,45.0,127.39,127.34,6.2821]
[1725810181061,51.28,127.39,127.34,6.2821]
[1725810181271,51.28,127.39,127.33,6.2828]
[1725810182862,45.0,127.39,127.32,6.4678]
[1725810183075,45.0,127.4,127.32,6.4678]
[1725810183290,6.2799,127.4,127.33,6.2824]
[1725810183518,45.0,127.39,127.33,6.2824]
[1725810183675,45.0,127.39,127.34,6.2821]
[1725810183960,45.0,127.39,127.32,6.4678]
[1725810185378,45.0,127.39,127.34,6.2823]
[1725810187478,45.0,127.39,127.35,6.2818]
[1725810188865,6.2789,127.41,127.36,6.2813]
[1725810189063,45.0,127.4,127.36,6.2813]
[1725810189560,45.0,127.4,127.35,6.2817]
[1725810190661,45.0,127.4,127.32,6.4678]
[1725810190864,45.0,127.41,127.37,6.2808]
[1725810191193,45.0,127.41,127.32,6.4678]
[1725810191379,45.0,127.41,127.33,20.0]
[1725810191989,45.0,127.41,127.36,6.2809]
[1725810192174,6.2795,127.4,127.35,6.2818]
[1725810192484,45.0,127.39,127.35,6.2818]
[1725810193399,51.2804,127.39,127.34,6.2819]
[1725810193413,51.2804,127.39,127.33,20.0]
[1725810193414,45.0,127.39,127.35,6.2818]
[1725810193970,45.0,127.39,127.36,6.2813]
[1725810194295,45.0,127.4,127.37,6.2809]
[1725810194489,45.0,127.41,127.37,6.2809]
[1725810195173,51.2789,127.41,127.37,6.2809]